[Event "FIDE WAC U1700 2021"]
[Site "Rhodes"]
[Date "2021.10.17"]
[Round "1.2"]
[White "Vanacker, Jeroen"]
[Black "Alasad, Tareq"]
[Result "0-1"]
[ECO "E90"]
[WhiteElo "1689"]
[BlackElo "1372"]
[Annotator "NA"]
[PlyCount "41"]
[EventDate "2021.10.17"]
[EventType "swiss"]
[EventCountry "GRE"]
[SourceTitle "playchess.com"]
[Source "ChessBase"]
[SourceQuality "1"]
[TimeControl "5400+30"]

1. e4 {[%emt 0:00:03]} c5 {[%emt 0:00:20]} 2. Nf3 {[%emt 0:00:07]} g6 {[%emt 0:00:21]} 3. d4 {[%emt 0:00:11]} Bg7 {[%emt 0:00:15]} 4. d5 {[%emt 0:03:26]} d6 {[%emt 0:01:34]} 5. c4 {[%emt 0:01:56]} Nf6 {[%emt 0:00:27]} 6. Nc3 {[%emt 0:00:05]} O-O {[%emt 0:00:35]} 7. Bd3 {[%emt 0:00:26]} Nbd7 {[%emt 0:00:23]} 8. O-O {[%emt 0:00:19]} Ng4 {[%emt 0:00:11]} 9. Rb1 {[%emt 0:02:50]} a6 {[%emt 0:01:06]} 10. h3 {[%emt 0:00:28]} Nge5 {[%emt 0:00:28]} 11. Nxe5 {[%emt 0:00:16]} Nxe5 {[%emt 0:00:11]} 12. f4 {[%emt 0:00:24]} Nxd3 {[%emt 0:00:21]} 13. Qxd3 {[%emt 0:00:01]} f5 {[%emt 0:06:28]} 14. Bd2 {[%emt 0:04:08]} fxe4 {[%emt 0:00:20]} 15. Nxe4 {[%emt 0:01:00]} Bf5 {[%emt 0:01:48]} 16. Rbe1 {[%emt 0:01:44]} Bxb2 {[%emt 0:02:53]} 17. Qb3 {[%emt 0:00:11]} Bd4+ {[%emt 0:00:22]} 18. Kh1 {[%emt 0:00:40]} Rb8 {[%emt 0:02:16]} 19. Ng5 {[%emt 0:03:04]} Qc7 {[%emt 0:11:39]} 20. Qg3 {[%emt 0:01:09]} Bg7 {[%emt 0:04:10]} 21. Qh4 {[%emt 0:02:30]} 0-1

[Event "FIDE WAC U1700 2021"]
[Site "Rhodes"]
[Date "2021.10.17"]
[Round "1.3"]
[White "Alban Mendez, Carlos Billy"]
[Black "Alhejab, Meshal"]
[Result "0-1"]
[ECO "D03"]
[WhiteElo "1322"]
[BlackElo "1681"]
[Annotator "NA"]
[PlyCount "78"]
[EventDate "2021.10.17"]
[EventType "swiss"]
[EventCountry "GRE"]
[SourceTitle "playchess.com"]
[Source "ChessBase"]
[SourceQuality "1"]
[TimeControl "5400+30"]

1. d4 {[%emt 0:00:19]} Nf6 {[%emt 0:00:09]} 2. Nf3 {[%emt 0:00:39]} d5 {[%emt 0:00:11]} 3. Bg5 {[%emt 0:00:39]} Bf5 {[%emt 0:00:54]} 4. e3 {[%emt 0:01:54]} e6 {[%emt 0:03:50]} 5. c3 {[%emt 0:06:16]} Be7 {[%emt 0:03:51]} 6. Qb3 {[%emt 0:06:22]} Nbd7 {[%emt 0:13:53]} 7. Nbd2 {[%emt 0:03:53]} c5 {[%emt 0:06:36]} 8. c4 {[%emt 0:04:54]} Bg4 {[%emt 0:13:53]} 9. Bd3 {[%emt 0:09:45]} cxd4 {[%emt 0:07:34]} 10. exd4 {[%emt 0:07:02]} Bxf3 {[%emt 0:02:41]} 11. Nxf3 {[%emt 0:00:27]} h6 {[%emt 0:01:45]} 12. Bf4 {[%emt 0:04:10]} dxc4 {[%emt 0:03:53]} 13. Bxc4 {[%emt 0:00:37]} Qa5+ {[%emt 0:04:33]} 14. Bd2 {[%emt 0:03:19]} Qb6 {[%emt 0:04:49]} 15. Qxb6 {[%emt 0:07:44]} axb6 {[%emt 0:00:55]} 16. O-O {[%emt 0:02:11]} O-O {[%emt 0:00:42]} 17. Rfe1 {[%emt 0:02:28]} Rfd8 {[%emt 0:03:25]} 18. h3 {[%emt 0:04:48]} Nb8 {[%emt 0:02:04]} 19. a3 {[%emt 0:06:58]} Nc6 {[%emt 0:01:17]} 20. Be3 {[%emt 0:00:58]} Ne8 {[%emt 0:03:15]} 21. Rad1 {[%emt 0:07:17]} Nc7 {[%emt 0:04:22]} 22. Ne5 {[%emt 0:04:29]} Nd5 {[%emt 0:03:55]} 23. Bc1 {[%emt 0:03:20]} Bf6 {[%emt 0:01:58]} 24. Bb5 {[%emt 0:01:40]} Nde7 {[%emt 0:01:45]} 25. Be3 {[%emt 0:03:09]} Rac8 {[%emt 0:05:29]} 26. Nf3 {[%emt 0:00:59]} Na5 {[%emt 0:02:45]} 27. Rc1 {[%emt 0:02:08]} Nec6 {[%emt 0:02:34]} 28. Red1 {[%emt 0:01:46]} Nb3 {[%emt 0:00:34]} 29. Rc4 {[%emt 0:00:59]} Ncxd4 {[%emt 0:00:36]} 30. Rxc8 {[%emt 0:02:53]} Nxf3+ {[%emt 0:00:20]} 31. gxf3 {[%emt 0:00:09]} Rxc8 {[%emt 0:00:16]} 32. Bxb6 {[%emt 0:00:49]} Bxb2 {[%emt 0:00:12]} 33. Rb1 {[%emt 0:01:13]} Rc1+ {[%emt 0:01:19]} 34. Rxc1 {[%emt 0:00:03]} Bxc1 {[%emt 0:00:13]} 35. a4 {[%emt 0:00:26]} Bb2 {[%emt 0:00:32]} 36. Bd7 {[%emt 0:00:18]} Bd4 {[%emt 0:00:16]} 37. Bc7 {[%emt 0:00:36]} b6 {[%emt 0:00:21]} 38. Bb5 {[%emt 0:00:31]} Bc5 {[%emt 0:00:41]} 39. Kg2 {[%emt 0:01:15]} Kf8 {[%emt 0:03:18]} 0-1

[Event "FIDE WAC U1700 2021"]
[Site "Rhodes"]
[Date "2021.10.17"]
[Round "1.4"]
[White "Gautier, Marc"]
[Black "Kalpakidis, Konstantinos"]
[Result "1-0"]
[ECO "B07"]
[WhiteElo "1684"]
[BlackElo "1309"]
[Annotator "NA"]
[PlyCount "75"]
[EventDate "2021.10.17"]
[EventType "swiss"]
[EventCountry "GRE"]
[SourceTitle "playchess.com"]
[Source "ChessBase"]
[SourceQuality "1"]
[TimeControl "5400+30"]

1. e4 {[%emt 0:00:03]} d6 {[%emt 0:00:50]} 2. d4 {[%emt 0:00:07]} Nf6 {[%emt 0:00:42]} 3. Bd3 {[%emt 0:00:11]} c6 {[%emt 0:00:27]} 4. f4 {[%emt 0:00:10]} g6 {[%emt 0:01:53]} 5. Nf3 {[%emt 0:00:10]} Bg7 {[%emt 0:00:43]} 6. O-O {[%emt 0:00:12]} Bg4 {[%emt 0:01:48]} 7. h3 {[%emt 0:02:34]} Be6 {[%emt 0:00:48]} 8. Ng5 {[%emt 0:07:29]} Qb6 {[%emt 0:06:31]} 9. Nxe6 {[%emt 0:02:16]} fxe6 {[%emt 0:00:25]} 10. c3 {[%emt 0:01:04]} Nbd7 {[%emt 0:01:00]} 11. Na3 {[%emt 0:06:04]} e5 {[%emt 0:01:46]} 12. Nc4 {[%emt 0:00:22]} Qc7 {[%emt 0:00:52]} 13. fxe5 {[%emt 0:00:37]} dxe5 {[%emt 0:01:39]} 14. Be3 {[%emt 0:14:08]} O-O {[%emt 0:03:41]} 15. Qb3 {[%emt 0:01:03]} Kh8 {[%emt 0:00:51]} 16. Nd2 {[%emt 0:10:07]} c5 {[%emt 0:08:45]} 17. d5 {[%emt 0:00:29]} a6 {[%emt 0:00:31]} 18. a4 {[%emt 0:05:24]} Rfb8 {[%emt 0:02:43]} 19. Nf3 {[%emt 0:08:20]} Rc8 {[%emt 0:03:45]} 20. c4 {[%emt 0:00:18]} b6 {[%emt 0:02:45]} 21. Ng5 {[%emt 0:00:40]} Kg8 {[%emt 0:03:05]} 22. Qc3 {[%emt 0:04:51]} Bh6 {[%emt 0:05:54]} 23. Bc2 {[%emt 0:07:51]} Nh5 {[%emt 0:03:04]} 24. Ne6 {[%emt 0:02:28]} Bxe3+ {[%emt 0:00:35]} 25. Qxe3 {[%emt 0:00:03]} Qd6 {[%emt 0:00:28]} 26. Bd1 {[%emt 0:07:18]} Nf4 {[%emt 0:04:56]} 27. Bg4 {[%emt 0:05:57]} Nf6 {[%emt 0:02:09]} 28. Nxf4 {[%emt 0:00:52]} Nxg4 {[%emt 0:01:51]} 29. hxg4 {[%emt 0:00:08]} exf4 {[%emt 0:00:35]} 30. Qxf4 {[%emt 0:00:11]} Qd7 {[%emt 0:03:23]} 31. e5 {[%emt 0:03:26]} Rf8 {[%emt 0:01:22]} 32. Qe4 {[%emt 0:00:46]} Rxf1+ {[%emt 0:01:51]} 33. Kxf1 {[%emt 0:00:01]} Rf8+ {[%emt 0:00:59]} 34. Kg1 {[%emt 0:00:34]} b5 {[%emt 0:01:21]} 35. axb5 {[%emt 0:00:33]} axb5 {[%emt 0:00:16]} 36. b3 {[%emt 0:00:24]} bxc4 {[%emt 0:01:19]} 37. Qxc4 {[%emt 0:02:47]} Qc7 {[%emt 0:02:05]} 38. d6+ {[%emt 0:00:23]} 1-0

[Event "FIDE WAC U1700 2021"]
[Site "Rhodes"]
[Date "2021.10.17"]
[Round "1.5"]
[White "Kalpakidis, Daniel Kyriakos"]
[Black "Ainakul, Mukhtar"]
[Result "0-1"]
[ECO "A48"]
[WhiteElo "1277"]
[BlackElo "1674"]
[Annotator "NA"]
[PlyCount "92"]
[EventDate "2021.10.17"]
[EventType "swiss"]
[EventCountry "GRE"]
[SourceTitle "playchess.com"]
[Source "ChessBase"]
[SourceQuality "1"]
[TimeControl "5400+30"]

1. d4 {[%emt 0:03:10]} Nf6 {[%emt 0:03:32]} 2. e3 {[%emt 0:00:00]} g6 {[%emt 0:01:14]} 3. Bd3 {[%emt 0:00:00]} Bg7 {[%emt 0:01:25]} 4. b3 {[%emt 0:00:00]} O-O {[%emt 0:00:37]} 5. Bb2 {[%emt 0:00:00]} d6 {[%emt 0:03:53]} 6. Nf3 {[%emt 0:00:00]} Nc6 {[%emt 0:03:46]} 7. O-O {[%emt 0:00:05]} Re8 {[%emt 0:03:06]} 8. c4 {[%emt 0:03:37]} e5 {[%emt 0:04:12]} 9. d5 {[%emt 0:06:28]} Nb4 {[%emt 0:04:23]} 10. e4 {[%emt 0:00:30]} Nxd3 {[%emt 0:02:49]} 11. Qxd3 {[%emt 0:00:08]} Nh5 {[%emt 0:00:37]} 12. Bc1 {[%emt 0:02:11]} f5 {[%emt 0:08:29]} 13. Nc3 {[%emt 0:11:10]} Nf6 {[%emt 0:04:34]} 14. Ng5 {[%emt 0:10:52]} h6 {[%emt 0:10:56]} 15. Ne6 {[%emt 0:01:34]} Bxe6 {[%emt 0:00:16]} 16. dxe6 {[%emt 0:00:11]} fxe4 {[%emt 0:00:11]} 17. Nxe4 {[%emt 0:00:33]} Rxe6 {[%emt 0:00:25]} 18. Nxf6+ {[%emt 0:01:49]} Qxf6 {[%emt 0:00:30]} 19. Bb2 {[%emt 0:02:39]} Qf5 {[%emt 0:05:07]} 20. Qxf5 {[%emt 0:04:58]} gxf5 {[%emt 0:03:08]} 21. f4 {[%emt 0:01:06]} exf4 {[%emt 0:09:31]} 22. Bxg7 {[%emt 0:00:23]} Kxg7 {[%emt 0:00:01]} 23. Rxf4 {[%emt 0:00:22]} Rf8 {[%emt 0:01:34]} 24. Rd1 {[%emt 0:02:23]} Re2 {[%emt 0:07:06]} 25. Rf2 {[%emt 0:01:54]} Rfe8 {[%emt 0:03:13]} 26. Rd5 {[%emt 0:08:39]} Re1+ {[%emt 0:02:29]} 27. Rf1 {[%emt 0:00:08]} Rxf1+ {[%emt 0:01:03]} 28. Kxf1 {[%emt 0:00:08]} Re5 {[%emt 0:00:11]} 29. Rd3 {[%emt 0:00:34]} b5 {[%emt 0:01:11]} 30. cxb5 {[%emt 0:02:13]} Rxb5 {[%emt 0:00:04]} 31. Rd4 {[%emt 0:01:05]} Rc5 {[%emt 0:02:30]} 32. a4 {[%emt 0:03:18]} a5 {[%emt 0:01:13]} 33. Rd3 {[%emt 0:03:43]} Kf6 {[%emt 0:00:40]} 34. Rh3 {[%emt 0:00:54]} Kg5 {[%emt 0:00:34]} 35. Rg3+ {[%emt 0:00:32]} Kf4 {[%emt 0:00:18]} 36. Rg6 {[%emt 0:02:24]} h5 {[%emt 0:00:17]} 37. Rg3 {[%emt 0:03:12]} Ke4 {[%emt 0:01:04]} 38. Ke2 {[%emt 0:01:57]} Rc2+ {[%emt 0:01:30]} 39. Kd1 {[%emt 0:01:10]} Rf2 {[%emt 0:01:24]} 40. Ke1 {[%emt 0:01:39]} Rb2 {[%emt 0:00:24]} 41. Kf1 {[%emt 0:02:56]} d5 {[%emt 0:03:13]} 42. Rc3 {[%emt 0:04:29]} d4 {[%emt 0:00:08]} 43. Rxc7 {[%emt 0:01:43]} d3 {[%emt 0:00:20]} 44. Ke1 {[%emt 0:01:44]} Rxg2 {[%emt 0:02:59]} 45. Ra7 {[%emt 0:02:03]} d2+ {[%emt 0:01:26]} 46. Kd1 {[%emt 0:00:13]} Kd3 {[%emt 0:00:09]} 0-1

[Event "FIDE WAC U1700 2021"]
[Site "Rhodes"]
[Date "2021.10.18"]
[Round "2.1"]
[White "Alhejab, Meshal"]
[Black "Keskin, Cengiz"]
[Result "1-0"]
[ECO "B30"]
[WhiteElo "1681"]
[BlackElo "1499"]
[Annotator "NA RC"]
[PlyCount "87"]
[EventDate "2021.10.17"]
[EventType "swiss"]
[EventCountry "GRE"]
[SourceTitle "playchess.com"]
[Source "ChessBase"]
[SourceQuality "1"]
[TimeControl "5400+30"]

1. e4 {[%emt 0:00:03]} c5 {[%emt 0:00:53]} 2. Nf3 {[%emt 0:00:05]} Nc6 {[%emt 0:00:18]} 3. Bb5 {[%emt 0:00:08]} Nf6 {[%emt 0:01:09]} 4. e5 {[%emt 0:00:04]} Ng8 {[%emt 0:02:31]} 5. O-O {[%emt 0:02:38]} e6 {[%emt 0:00:41]} 6. Re1 {[%emt 0:03:16]} Nge7 {[%emt 0:00:17]} 7. Ng5 {[%emt 0:00:42]} Ng6 {[%emt 0:01:23]} 8. Qh5 {[%emt 0:01:53]} Be7 {[%emt 0:05:18]} 9. Nxh7 {[%emt 0:02:55]} Bg5 {[%emt 0:03:54]} 10. Bd3 {[%emt 0:11:15]} Ncxe5 {[%emt 0:07:19]} 11. Rxe5 {[%emt 0:14:55]} Nxe5 {[%emt 0:01:48]} 12. Qxg5 {[%emt 0:00:24]} Qxg5 {[%emt 0:02:23]} 13. Nxg5 {[%emt 0:00:17]} Nxd3 {[%emt 0:00:28]} 14. cxd3 {[%emt 0:00:02]} d5 {[%emt 0:00:35]} 15. f4 {[%emt 0:01:28]} Bd7 {[%emt 0:01:45]} 16. Nc3 {[%emt 0:01:25]} f6 {[%emt 0:01:10]} 17. Nf3 {[%emt 0:00:10]} O-O-O {[%emt 0:00:24]} 18. Rb1 {[%emt 0:03:34]} a5 {[%emt 0:06:14]} 19. b3 {[%emt 0:00:51]} b5 {[%emt 0:06:58]} 20. f5 {[%emt 0:11:06]} Rh5 {[%emt 0:01:27]} 21. fxe6 {[%emt 0:00:40]} Bc6 {[%emt 0:01:13]} 22. d4 {[%emt 0:03:45]} b4 {[%emt 0:02:10]} 23. Ne2 {[%emt 0:00:40]} c4 {[%emt 0:01:12]} 24. a3 {[%emt 0:10:52]} g5 {[%emt 0:06:16]} 25. Ng3 {[%emt 0:06:51]} Rh7 {[%emt 0:01:01]} 26. Nf5 {[%emt 0:00:57]} Kc7 {[%emt 0:04:57]} 27. e7 {[%emt 0:03:28]} Rdh8 {[%emt 0:01:10]} 28. axb4 {[%emt 0:01:15]} axb4 {[%emt 0:00:40]} 29. bxc4 {[%emt 0:02:47]} dxc4 {[%emt 0:01:13]} 30. Rxb4 {[%emt 0:00:47]} Bxf3 {[%emt 0:01:34]} 31. gxf3 {[%emt 0:01:12]} Rxh2 {[%emt 0:00:59]} 32. e8=Q {[%emt 0:04:41]} Rh1+ {[%emt 0:02:37]} 33. Kg2 {[%emt 0:00:52]} Rxe8 {[%emt 0:02:48]} 34. Rxc4+ {[%emt 0:00:18]} Kd7 {[%emt 0:00:46]} 35. Kxh1 {[%emt 0:00:09]} Re2 {[%emt 0:01:06]} 36. Ba3 {[%emt 0:00:49]} Rxd2 {[%emt 0:00:57]} 37. Ra4 {[%emt 0:00:36]} Rf2 {[%emt 0:01:02]} 38. d5 {[%emt 0:00:19]} Rxf3 {[%emt 0:01:08]} 39. Ra7+ {[%emt 0:00:06]} Kd8 {[%emt 0:01:13]} 40. Be7+ {[%emt 0:00:46]} Kc8 {[%emt 0:00:28]} 41. d6 {[%emt 0:00:53]} Rd3 {[%emt 0:03:27]} 42. Bxf6 {[%emt 0:00:57]} g4 {[%emt 0:00:43]} 43. Ne7+ {[%emt 0:00:49]} Kb8 {[%emt 0:01:45]} 44. Nc6+ {[%emt 0:00:04]} 1-0

[Event "FIDE WAC U1700 2021"]
[Site "Rhodes"]
[Date "2021.10.18"]
[Round "2.2"]
[White "Farhaan, M."]
[Black "Gautier, Marc"]
[Result "1-0"]
[ECO "D04"]
[WhiteElo "1529"]
[BlackElo "1684"]
[Annotator "NA RC"]
[PlyCount "121"]
[EventDate "2021.10.17"]
[EventType "swiss"]
[EventCountry "GRE"]
[SourceTitle "playchess.com"]
[Source "ChessBase"]
[SourceQuality "1"]
[TimeControl "5400+30"]

1. d4 {[%emt 0:00:03]} d5 {[%emt 0:00:04]} 2. Nf3 {[%emt 0:00:07]} Nf6 {[%emt 0:00:08]} 3. e3 {[%emt 0:00:06]} c6 {[%emt 0:00:05]} 4. Bd3 {[%emt 0:00:06]} Bg4 {[%emt 0:00:47]} 5. Nbd2 {[%emt 0:00:15]} e6 {[%emt 0:00:22]} 6. h3 {[%emt 0:00:06]} Bh5 {[%emt 0:00:05]} 7. c3 {[%emt 0:00:25]} Nbd7 {[%emt 0:00:18]} 8. e4 {[%emt 0:00:56]} dxe4 {[%emt 0:00:49]} 9. Nxe4 {[%emt 0:00:15]} Nxe4 {[%emt 0:00:23]} 10. Bxe4 {[%emt 0:00:03]} Nf6 {[%emt 0:00:27]} 11. Bc2 {[%emt 0:02:14]} Qd5 {[%emt 0:08:11]} 12. Be3 {[%emt 0:11:06]} Bxf3 {[%emt 0:03:01]} 13. Qxf3 {[%emt 0:00:18]} Qxf3 {[%emt 0:00:06]} 14. gxf3 {[%emt 0:00:05]} Nd5 {[%emt 0:00:30]} 15. Rg1 {[%emt 0:00:43]} g6 {[%emt 0:04:40]} 16. Ke2 {[%emt 0:00:49]} Bd6 {[%emt 0:01:02]} 17. Rae1 {[%emt 0:05:11]} O-O-O {[%emt 0:13:56]} 18. Bb3 {[%emt 0:08:29]} Rhe8 {[%emt 0:10:15]} 19. Bxd5 {[%emt 0:01:08]} exd5 {[%emt 0:00:18]} 20. Kd3 {[%emt 0:01:32]} Re6 {[%emt 0:04:30]} 21. Bg5 {[%emt 0:01:39]} Rde8 {[%emt 0:00:22]} 22. Kd2 {[%emt 0:02:40]} Rxe1 {[%emt 0:01:45]} 23. Rxe1 {[%emt 0:00:04]} Rxe1 {[%emt 0:00:04]} 24. Kxe1 {[%emt 0:00:10]} Kd7 {[%emt 0:00:06]} 25. b3 {[%emt 0:19:48]} Ke6 {[%emt 0:01:55]} 26. c4 {[%emt 0:01:54]} Kf5 {[%emt 0:04:22]} 27. Bd8 {[%emt 0:04:26]} Kf4 {[%emt 0:03:40]} 28. Ke2 {[%emt 0:00:20]} Bf8 {[%emt 0:04:42]} 29. Bf6 {[%emt 0:02:36]} Kf5 {[%emt 0:00:11]} 30. Be5 {[%emt 0:09:19]} Bh6 {[%emt 0:05:31]} 31. Bb8 {[%emt 0:03:55]} a6 {[%emt 0:00:12]} 32. cxd5 {[%emt 0:01:18]} cxd5 {[%emt 0:00:08]} 33. Bc7 {[%emt 0:00:18]} Bf4 {[%emt 0:07:38]} 34. Bd8 {[%emt 0:01:09]} Bc1 {[%emt 0:01:19]} 35. Bc7 {[%emt 0:00:26]} Kg5 {[%emt 0:01:20]} 36. Bd8+ {[%emt 0:00:35]} Kh5 {[%emt 0:00:28]} 37. Kf1 {[%emt 0:00:13]} Bg5 38. Bc7 {[%emt 0:02:33]} Bf6 {[%emt 0:04:56]} 39. Bb6 {[%emt 0:00:48]} Kg5 {[%emt 0:01:56]} 40. a4 {[%emt 0:00:28]} Kf5 {[%emt 0:00:21]} 41. Ke2 {[%emt 0:00:12]} Bg5 {[%emt 0:01:04]} 42. Bc7 {[%emt 0:00:37]} Ke6 {[%emt 0:00:33]} 43. Kd3 {[%emt 0:00:41]} Kf5 {[%emt 0:02:06]} 44. Ke2 {[%emt 0:00:02]} Bc1 {[%emt 0:00:23]} 45. Bb6 {[%emt 0:00:53]} Bb2 {[%emt 0:02:13]} 46. Bc5 {[%emt 0:01:05]} Kg5 {[%emt 0:01:13]} 47. Kf1 {[%emt 0:00:03]} f5 {[%emt 0:01:31]} 48. Bb6 {[%emt 0:00:32]} Kh4 {[%emt 0:00:47]} 49. Kg2 {[%emt 0:00:09]} Bc3 {[%emt 0:00:35]} 50. Bc5 {[%emt 0:02:44]} g5 {[%emt 0:01:23]} 51. Bb6 {[%emt 0:00:52]} g4 {[%emt 0:01:19]} 52. hxg4 {[%emt 0:03:03]} fxg4 {[%emt 0:00:13]} 53. f4 {[%emt 0:00:17]} Be1 {[%emt 0:06:31]} 54. Bd8+ {[%emt 0:02:37]} Kh5 {[%emt 0:00:13]} 55. f5 {[%emt 0:00:22]} Kh6 {[%emt 0:01:11]} 56. Bf6 {[%emt 0:00:35]} Kh5 {[%emt 0:01:54]} 57. Kg3 {[%emt 0:01:56]} Bd2 {[%emt 0:00:30]} 58. Bd8 {[%emt 0:07:35]} Be1 {[%emt 0:00:44]} 59. Be7 {[%emt 0:02:07]} Kh6 {[%emt 0:01:01]} 60. Kxg4 {[%emt 0:00:57]} Bxf2 {[%emt 0:00:59]} 61. Bf8# {[%emt 0:00:02]} 1-0

[Event "FIDE WAC U1700 2021"]
[Site "Rhodes"]
[Date "2021.10.18"]
[Round "2.3"]
[White "Ainakul, Mukhtar"]
[Black "Murad, Bino"]
[Result "1-0"]
[ECO "E97"]
[WhiteElo "1674"]
[BlackElo "1522"]
[Annotator "NA RC"]
[PlyCount "104"]
[EventDate "2021.10.17"]
[EventType "swiss"]
[EventCountry "GRE"]
[SourceTitle "playchess.com"]
[Source "ChessBase"]
[SourceQuality "1"]
[TimeControl "5400+30"]

1. d4 {[%emt 0:00:26]} Nf6 {[%emt 0:00:22]} 2. c4 {[%emt 0:00:09]} g6 {[%emt 0:01:21]} 3. Nc3 {[%emt 0:01:32]} Bg7 {[%emt 0:01:13]} 4. e4 {[%emt 0:05:24]} d6 {[%emt 0:00:16]} 5. Nf3 {[%emt 0:01:33]} O-O {[%emt 0:00:23]} 6. Be2 {[%emt 0:00:15]} e5 {[%emt 0:00:26]} 7. O-O {[%emt 0:00:46]} Nc6 {[%emt 0:00:15]} 8. d5 {[%emt 0:00:14]} Ne7 {[%emt 0:00:23]} 9. b4 {[%emt 0:00:26]} Nh5 {[%emt 0:00:50]} 10. c5 {[%emt 0:03:17]} f5 {[%emt 0:04:34]} 11. Ng5 {[%emt 0:11:51]} Nf6 {[%emt 0:00:38]} 12. f3 {[%emt 0:08:35]} f4 {[%emt 0:02:24]} 13. Qb3 {[%emt 0:05:56]} Kh8 {[%emt 0:04:55]} 14. Rd1 {[%emt 0:05:43]} Ne8 {[%emt 0:17:30]} 15. Kh1 {[%emt 0:13:37]} Nxd5 {[%emt 0:09:33]} 16. Nxh7 {[%emt 0:05:27]} Nxc3 {[%emt 0:00:51]} 17. Nxf8 {[%emt 0:00:34]} Nxe2 {[%emt 0:05:51]} 18. Nxg6+ {[%emt 0:03:03]} Kh7 {[%emt 0:00:13]} 19. Qf7 {[%emt 0:02:20]} Nf6 {[%emt 0:14:37]} 20. Bb2 {[%emt 0:05:32]} Qe8 {[%emt 0:01:56]} 21. Nxe5 {[%emt 0:07:00]} Qxf7 22. Nxf7 {[%emt 0:00:05]} Ng4 23. Rf1 {[%emt 0:03:03]} Bxb2 {[%emt 0:17:26]} 24. Rab1 {[%emt 0:01:25]} Bd4 {[%emt 0:04:38]} 25. fxg4 {[%emt 0:00:22]} Bxg4 {[%emt 0:00:24]} 26. Ng5+ {[%emt 0:04:46]} Kg6 {[%emt 0:00:37]} 27. Nf3 {[%emt 0:00:02]} dxc5 {[%emt 0:02:15]} 28. bxc5 {[%emt 0:03:02]} Bxc5 {[%emt 0:00:07]} 29. Rb2 {[%emt 0:00:24]} Bxf3 {[%emt 0:01:21]} 30. gxf3 {[%emt 0:00:13]} Nd4 {[%emt 0:00:54]} 31. Rg2+ {[%emt 0:01:40]} Kf6 {[%emt 0:00:22]} 32. Rg4 {[%emt 0:00:34]} Ne6 {[%emt 0:02:15]} 33. Rd1 {[%emt 0:00:17]} Rh8 {[%emt 0:01:06]} 34. Rd5 {[%emt 0:00:40]} Bd6 {[%emt 0:01:38]} 35. Kg2 {[%emt 0:00:31]} b6 {[%emt 0:00:31]} 36. h4 {[%emt 0:00:27]} a5 {[%emt 0:00:20]} 37. h5 {[%emt 0:00:36]} Rh6 {[%emt 0:02:34]} 38. Kh3 {[%emt 0:01:16]} Be5 {[%emt 0:01:11]} 39. Kh4 {[%emt 0:01:25]} c6 {[%emt 0:00:52]} 40. Rd2 {[%emt 0:00:24]} Ng7 {[%emt 0:00:22]} 41. Rg5 {[%emt 0:00:23]} Ne6 {[%emt 0:00:26]} 42. Rf5+ {[%emt 0:00:08]} Ke7 {[%emt 0:00:56]} 43. Rxe5 {[%emt 0:00:04]} Kf6 {[%emt 0:00:26]} 44. Rf5+ {[%emt 0:00:07]} Ke7 {[%emt 0:00:02]} 45. e5 {[%emt 0:00:34]} c5 {[%emt 0:00:11]} 46. Rf6 {[%emt 0:01:18]} Rh8 {[%emt 0:00:48]} 47. Rd6 {[%emt 0:00:31]} Nd4 {[%emt 0:00:06]} 48. Rxf4 {[%emt 0:00:22]} b5 {[%emt 0:00:36]} 49. Rff6 {[%emt 0:00:50]} b4 {[%emt 0:00:14]} 50. Ra6 {[%emt 0:00:09]} Rc8 {[%emt 0:01:22]} 51. Ra7+ {[%emt 0:00:29]} Ke8 {[%emt 0:00:02]} 52. h6 {[%emt 0:00:12]} Ra8 {[%emt 0:00:39]} 1-0

[Event "FIDE WAC U1700 2021"]
[Site "Rhodes"]
[Date "2021.10.18"]
[Round "2.4"]
[White "Shek, Daniel"]
[Black "Bozkurt, Serkan"]
[Result "0-1"]
[ECO "D02"]
[WhiteElo "1522"]
[BlackElo "1668"]
[Annotator "NA RC"]
[PlyCount "98"]
[EventDate "2021.10.17"]
[EventType "swiss"]
[EventCountry "GRE"]
[SourceTitle "playchess.com"]
[Source "ChessBase"]
[SourceQuality "1"]
[TimeControl "5400+30"]

1. d4 {[%emt 0:02:53]} Nf6 {[%emt 0:00:06]} 2. Bf4 {[%emt 0:00:15]} g6 {[%emt 0:00:34]} 3. e3 {[%emt 0:03:54]} Bg7 {[%emt 0:00:17]} 4. Nd2 {[%emt 0:00:08]} d5 {[%emt 0:01:48]} 5. Bd3 {[%emt 0:00:46]} O-O {[%emt 0:01:22]} 6. Ngf3 {[%emt 0:00:13]} c5 {[%emt 0:00:16]} 7. c3 {[%emt 0:00:56]} Qb6 {[%emt 0:01:47]} 8. Qb3 {[%emt 0:02:29]} c4 {[%emt 0:18:14]} 9. Qxb6 {[%emt 0:01:10]} axb6 {[%emt 0:00:01]} 10. Bc2 {[%emt 0:00:31]} Bf5 {[%emt 0:01:46]} 11. Bxf5 {[%emt 0:06:11]} gxf5 {[%emt 0:00:02]} 12. h3 {[%emt 0:02:16]} Nc6 {[%emt 0:01:12]} 13. Ne5 {[%emt 0:02:16]} Ra6 {[%emt 0:18:20]} 14. f3 {[%emt 0:10:12]} b5 {[%emt 0:01:28]} 15. Nxc6 {[%emt 0:04:33]} bxc6 {[%emt 0:01:18]} 16. g4 {[%emt 0:03:23]} fxg4 {[%emt 0:03:09]} 17. hxg4 {[%emt 0:01:24]} Nd7 {[%emt 0:00:43]} 18. Bg3 {[%emt 0:02:17]} c5 {[%emt 0:02:18]} 19. a3 {[%emt 0:06:32]} b4 {[%emt 0:07:25]} 20. Ke2 {[%emt 0:07:18]} bxc3 {[%emt 0:03:58]} 21. bxc3 {[%emt 0:00:32]} cxd4 {[%emt 0:00:32]} 22. exd4 {[%emt 0:00:36]} e5 {[%emt 0:00:48]} 23. dxe5 {[%emt 0:05:11]} Nxe5 {[%emt 0:00:36]} 24. Bxe5 {[%emt 0:01:17]} Bxe5 {[%emt 0:00:01]} 25. Rhc1 {[%emt 0:05:33]} Re8 {[%emt 0:03:37]} 26. Kd1 {[%emt 0:02:43]} Bd6 {[%emt 0:01:48]} 27. a4 {[%emt 0:01:28]} Re3 {[%emt 0:11:47]} 28. Kc2 {[%emt 0:02:46]} Be5 {[%emt 0:01:19]} 29. Ra3 {[%emt 0:00:35]} Re2 30. Kd1 {[%emt 0:04:04]} Rf2 {[%emt 0:02:05]} 31. Kc2 {[%emt 0:02:11]} Bf4 {[%emt 0:01:40]} 32. Rd1 {[%emt 0:01:06]} Ra5 {[%emt 0:00:24]} 33. Raa1 {[%emt 0:02:48]} Kg7 {[%emt 0:00:21]} 34. Ra2 {[%emt 0:01:27]} Kg6 {[%emt 0:00:54]} 35. Kb1 {[%emt 0:01:11]} h6 {[%emt 0:02:41]} 36. Kc2 {[%emt 0:01:13]} f6 {[%emt 0:02:40]} 37. Kb1 {[%emt 0:01:06]} Bxd2 {[%emt 0:00:22]} 38. Rdxd2 {[%emt 0:01:25]} Rxf3 {[%emt 0:00:18]} 39. Kc2 {[%emt 0:00:30]} Rg3 {[%emt 0:01:38]} 40. Rd4 {[%emt 0:00:39]} Kg5 {[%emt 0:00:26]} 41. Rb2 {[%emt 0:01:44]} Rxg4 {[%emt 0:03:49]} 42. Rb5 {[%emt 0:01:11]} Rg2+ {[%emt 0:02:19]} 43. Rd2 {[%emt 0:00:48]} Rxd2+ {[%emt 0:00:12]} 44. Kxd2 {[%emt 0:00:02]} Rxa4 {[%emt 0:00:06]} 45. Rxd5+ {[%emt 0:00:08]} f5 {[%emt 0:00:14]} 46. Rd4 {[%emt 0:00:49]} f4 {[%emt 0:00:39]} 47. Ke2 {[%emt 0:00:15]} Kg4 {[%emt 0:00:02]} 48. Rd8 {[%emt 0:00:47]} Ra2+ {[%emt 0:00:17]} 49. Ke1 {[%emt 0:00:33]} Rc2 {[%emt 0:00:42]} 0-1